fUSD/lending_fUSD_20260521
["ID","MTS","AMOUNT","RATE_DAILY","PERIOD"]
[422717357,1779298233000,-188.91894,0.00012756,2]
[422717353,1779298233000,-151.6591936,0.00012637,2]
[422717369,1779298233000,-150.0,0.0001329,2]
[422717359,1779298233000,-6922.58917918,0.00012881,2]
[422717368,1779298233000,-150.0,0.0001329,2]
[422717378,1779298233000,-150.0,0.00013345,2]
[422717365,1779298233000,-23532.4735,0.00013265,2]
[422717367,1779298233000,-150.0,0.0001329,2]
[422717371,1779298233000,-150.0,0.0001329,2]
[422717381,1779298233000,-150.0,0.00013356,2]
[422717370,1779298233000,-150.0,0.0001329,2]
[422717366,1779298233000,-150.0,0.0001329,2]
[422717376,1779298233000,-150.0,0.0001329,2]
[422717375,1779298233000,-150.0,0.0001329,2]
[422717379,1779298233000,-500.0,0.00013356,2]
[422717374,1779298233000,-150.0,0.0001329,2]
[422717377,1779298233000,-150.16540375,0.0001329,2]
[422717352,1779298233000,-3620.0,0.00012586,2]
[422717364,1779298233000,-20004.94,0.00013018,2]
[422717355,1779298233000,-285.18,0.00012653,2]
[422717330,1779298233000,-2012.14483392,0.00011099,2]
[422717349,1779298233000,-243.528321,0.00012538,2]
[422717325,1779298233000,-500.0,0.00010958,2]
[422717324,1779298233000,-500.0,0.00010958,2]
[422717323,1779298233000,-500.0,0.00010958,2]
[422717326,1779298233000,-150.0,0.00010959,2]
[422717328,1779298233000,-4000.0,0.0001103,2]
[422717329,1779298233000,-2012.144834,0.00011099,2]
[422717331,1779298233000,-2012.14483392,0.00011099,2]
[422717332,1779298233000,-2012.14483392,0.00011099,2]
[422717333,1779298233000,-6922.58917918,0.00011367,2]
[422717327,1779298233000,-150.0,0.00010959,2]
[422717334,1779298233000,-1613.0,0.00011439,2]
[422717336,1779298233000,-2129.0,0.00011443,2]
[422717335,1779298233000,-6453.0,0.00011439,2]
[422717337,1779298233000,-1000.0,0.00011591,2]
[422717345,1779298233000,-2012.14483392,0.00012284,2]
[422717339,1779298233000,-162.0,0.00011871,2]
[422717348,1779298233000,-2227.828959,0.00012538,2]
[422717347,1779298233000,-6922.58917918,0.00012376,2]
[422717340,1779298233000,-6922.58917918,0.00011871,2]
[422717341,1779298233000,-1929.56944923,0.00011912,2]
[422717344,1779298233000,-5204.31,0.00012246,2]
[422717338,1779298233000,-2012.14483392,0.0001163,2]
[422717343,1779298233000,-200.0,0.00012183,2]
[422717342,1779298233000,-874.0,0.00012173,2]
[422717346,1779298233000,-835.75,0.00012329,2]
[422717350,1779298233000,-2258.0,0.00012583,2]
[422717360,1779298233000,-150.99,0.00012893,2]
[422717351,1779298233000,-9035.0,0.00012583,2]
[422717380,1779298233000,-600.0,0.00013356,2]
[422717390,1779298233000,-150.0,0.00013488,2]
[422717385,1779298233000,-500.0,0.00013385,2]
[422717411,1779298233000,-150.0,0.00013728,2]
[422717416,1779298233000,-150.0,0.00013783,2]
[422717414,1779298233000,-150.0,0.00013783,2]
[422717418,1779298233000,-150.0,0.0001381,2]
[422717417,1779298233000,-150.0,0.0001381,2]
[422717419,1779298233000,-150.0,0.0001381,2]
[422717421,1779298233000,-151.04313997,0.0001381,2]
[422717420,1779298233000,-150.0,0.0001381,2]
[422717424,1779298233000,-169.35942574,0.00013825,2]
[422717426,1779298233000,-150.0,0.00013837,2]
[422717427,1779298233000,-1868.0,0.00013841,2]
[422717429,1779298233000,-255.0,0.00013843,2]
[422717428,1779298233000,-12649.0,0.00013841,2]
[422717430,1779298233000,-150.0,0.00013881,2]
[422717431,1779298233000,-6922.58917918,0.0001389,2]
[422717432,1779298233000,-150.0,0.00013892,2]
[422717434,1779298233000,-500.0,0.0001392,2]
[422717433,1779298233000,-1929.56944923,0.00013904,2]
[422717425,1779298233000,-166.66,0.00013836,2]
[422717437,1779298233000,-666.0,0.00013924,2]
[422717438,1779298233000,-500.0,0.00013924,2]
[422717436,1779298233000,-300.0,0.00013924,2]
[422717439,1779298233000,-500.0,0.00013924,2]
[422717440,1779298233000,-500.0,0.00013924,2]
[422717441,1779298233000,-500.0,0.00013924,2]
[422717442,1779298233000,-500.0,0.00013924,2]
[422717382,1779298233000,-1271.0,0.00013365,2]
[422717413,1779298233000,-153.51,0.00013745,2]
[422717415,1779298233000,-150.0,0.00013783,2]
[422717435,1779298233000,-300.0,0.00013924,2]
[422717422,1779298233000,-7781.89769056,0.00013825,2]
[422717423,1779298233000,-953.28014158,0.00013825,2]
[422717383,1779298233000,-1224.0,0.00013365,2]
[422717384,1779298233000,-1354.0,0.00013365,2]
[422717386,1779298233000,-6922.58917918,0.00013386,2]
[422717392,1779298233000,-1000.0,0.000135,2]
[422717396,1779298233000,-150.0,0.00013586,2]
[422717394,1779298233000,-150.0,0.00013537,2]
[422717395,1779298233000,-150.0,0.00013564,2]
[422717397,1779298233000,-2012.14483392,0.00013592,2]
[422717388,1779298233000,-164.0,0.000134,2]
[422717387,1779298233000,-150.0,0.000134,2]
[422717389,1779298233000,-150.0,0.00013454,2]
[422717391,1779298233000,-166.66,0.00013496,2]
[422717393,1779298233000,-150.0,0.00013509,2]
[422717398,1779298233000,-150.0,0.00013619,2]
[422717412,1779298233000,-150.0,0.00013737,2]
[422717400,1779298233000,-2500.0,0.00013699,2]
[422717405,1779298233000,-2046.42,0.00013699,2]
[422717407,1779298233000,-9999.99,0.00013699,2]
[422717408,1779298233000,-9999.99,0.00013699,2]
[422717409,1779298233000,-162.0,0.00013699,2]
[422717403,1779298233000,-299.99,0.00013699,2]
[422717404,1779298233000,-9999.99,0.00013699,2]
[422717402,1779298233000,-166.66,0.00013699,2]
[422717406,1779298233000,-361.67,0.00013699,2]
[422717401,1779298233000,-200.0,0.00013699,2]
[422717399,1779298233000,-150.0,0.00013673,2]
[422717410,1779298233000,-5000.0,0.00013725,2]
[422717462,1779298234000,-359.00094782,0.00013924,2]
[422717468,1779298234000,-500.0,0.00013924,2]
[422717470,1779298234000,-500.0,0.00013924,2]
[422717463,1779298234000,-500.0,0.00013924,2]
[422717464,1779298234000,-500.0,0.00013924,2]
[422717469,1779298234000,-500.0,0.00013924,2]
[422717466,1779298234000,-500.0,0.00013924,2]
[422717467,1779298234000,-500.0,0.00013924,2]
[422717478,1779298234000,-572.52063942,0.00013924,2]
[422717477,1779298234000,-500.0,0.00013924,2]
[422717476,1779298234000,-500.0,0.00013924,2]
[422717474,1779298234000,-500.0,0.00013924,2]
[422717475,1779298234000,-500.0,0.00013924,2]
[422717479,1779298234000,-513.50677347,0.00013924,2]
[422717480,1779298234000,-500.0,0.00013924,2]
[422717465,1779298234000,-500.0,0.00013924,2]
[422717481,1779298234000,-500.0,0.00013924,2]
[422717473,1779298234000,-500.0,0.00013924,2]
[422717460,1779298234000,-500.0,0.00013924,2]
[422717448,1779298234000,-500.0,0.00013924,2]
[422717472,1779298234000,-500.0,0.00013924,2]
[422717483,1779298234000,-500.0,0.00013924,2]
[422717443,1779298234000,-500.0,0.00013924,2]
[422717447,1779298234000,-500.0,0.00013924,2]
[422717444,1779298234000,-500.0,0.00013924,2]
[422717446,1779298234000,-500.0,0.00013924,2]
[422717445,1779298234000,-500.0,0.00013924,2]
[422717452,1779298234000,-500.0,0.00013924,2]
[422717454,1779298234000,-500.0,0.00013924,2]
[422717471,1779298234000,-500.0,0.00013924,2]
[422717449,1779298234000,-500.0,0.00013924,2]
[422717450,1779298234000,-499.02026062,0.00013924,2]
[422717451,1779298234000,-500.0,0.00013924,2]
[422717453,1779298234000,-500.0,0.00013924,2]
[422717456,1779298234000,-500.0,0.00013924,2]
[422717458,1779298234000,-500.0,0.00013924,2]
[422717455,1779298234000,-500.0,0.00013924,2]
[422717457,1779298234000,-500.0,0.00013924,2]
[422717461,1779298234000,-500.0,0.00013924,2]
[422717459,1779298234000,-289.81062676,0.00013924,2]
[422717482,1779298234000,-500.0,0.00013924,2]
[422717502,1779298234000,-151.0,0.00014022,2]
[422717484,1779298234000,-500.0,0.00013924,2]
[422717510,1779298234000,-500.0,0.00014024,2]
[422717512,1779298234000,-253.88331002,0.00014025,2]
[422717513,1779298234000,-150.0,0.00014029,2]
[422717511,1779298234000,-151.0,0.00014025,2]
[422717485,1779298234000,-448.25372383,0.00013924,2]
[422717514,1779298234000,-150.0,0.00014029,2]
[422717515,1779298234000,-151.0,0.00014052,2]
[422717516,1779298234000,-151.0,0.00014052,2]
[422717508,1779298234000,-130104.11042783,0.00014024,2]
[422717517,1779298234000,-151.0,0.00014052,2]
[422717519,1779298234000,-151.0,0.00014052,2]
[422717521,1779298234000,-151.0,0.00014052,2]
[422717524,1779298234000,-151.0,0.00014052,2]
[422717523,1779298234000,-151.0,0.00014052,2]
[422717526,1779298234000,-151.0,0.00014052,2]
[422717520,1779298234000,-578.20924308,0.00014052,2]
[422717522,1779298234000,-151.0,0.00014052,2]
[422717525,1779298234000,-151.0,0.00014052,2]
[422717509,1779298234000,-641.21721473,0.00014024,2]
[422717503,1779298234000,-151.0,0.00014022,2]
[422717518,1779298234000,-151.0,0.00014052,2]
[422717501,1779298234000,-1850.12531882,0.00014014,2]
[422717491,1779298234000,-153.874212,0.00013925,2]
[422717486,1779298234000,-165.84382573,0.00013924,2]
[422717494,1779298234000,-151.0,0.00013925,2]
[422717490,1779298234000,-2000.0,0.00013925,2]
[422717487,1779298234000,-164.56,0.00013924,2]
[422717492,1779298234000,-152.529896,0.00013925,2]
[422717489,1779298234000,-892.5689,0.00013925,2]
[422717493,1779298234000,-153.339106,0.00013925,2]
[422717506,1779298234000,-666.0,0.00014023,2]
[422717488,1779298234000,-164.0,0.00013924,2]
[422717495,1779298234000,-166.66,0.00013942,2]
[422717498,1779298234000,-150.0,0.00013987,2]
[422717507,1779298234000,-88264.75679167,0.00014024,2]
[422717500,1779298234000,-953.28014156,0.00014004,2]
[422717497,1779298234000,-166.66,0.00013973,2]
[422717499,1779298234000,-150.0,0.00014001,2]
[422717505,1779298234000,-300.0,0.00014023,2]
[422717504,1779298234000,-500.0,0.00014023,2]
[422717496,1779298234000,-150.0,0.00013947,2]
[422717542,1779298235000,-214.92429521,0.0001415,2]
[422717546,1779298235000,-215.20247212,0.00014178,2]
[422717540,1779298235000,-160.0,0.00014118,2]
[422717537,1779298235000,-189.0,0.00014084,2]
[422717536,1779298235000,-150.0,0.00014056,2]
[422717534,1779298235000,-151.0,0.00014052,2]
[422717533,1779298235000,-151.0,0.00014052,2]
[422717530,1779298235000,-151.0,0.00014052,2]
[422717528,1779298235000,-151.0,0.00014052,2]
[422717529,1779298235000,-151.0,0.00014052,2]
[422717532,1779298235000,-151.0,0.00014052,2]
[422717531,1779298235000,-151.0,0.00014052,2]
[422717543,1779298235000,-10000.0,0.0001415,2]
[422717527,1779298235000,-151.0,0.00014052,2]
[422717541,1779298235000,-208.63953863,0.00014118,2]
[422717535,1779298235000,-151.0,0.00014052,2]
[422717538,1779298235000,-166.66,0.0001411,2]
[422717557,1779298235000,-22793.23569736,0.0001425,2]
[422717555,1779298235000,-500.0,0.00014249,2]
[422717551,1779298235000,-150.0,0.00014237,2]
[422717549,1779298235000,-150.0,0.0001422,2]
[422717554,1779298235000,-500.0,0.00014249,2]
[422717550,1779298235000,-285.18,0.00014235,2]
[422717552,1779298235000,-2012.14483392,0.00014246,2]
[422717539,1779298235000,-150.0,0.00014111,2]
[422717547,1779298235000,-953.28014156,0.00014183,2]
[422717558,1779298235000,-40963.7503673,0.0001425,2]
[422717556,1779298235000,-666.0,0.00014249,2]
[422717548,1779298235000,-2000.0,0.00014217,2]
[422717544,1779298235000,-150.0,0.00014165,2]
[422717545,1779298235000,-150.0,0.00014176,2]
[422717553,1779298235000,-166.66,0.00014247,2]
[422717562,1779298238000,-500.0,0.00013365,2]
[422717565,1779298238000,-609.99776406,0.0001425,2]
[422717567,1779298238000,-389.74,0.0001425,2]
[422717566,1779298238000,-906.56824085,0.0001425,2]
[422717563,1779298238000,-657.05156622,0.00013365,2]
[422717564,1779298238000,-4900.94843378,0.00013365,2]
[422717573,1779298240000,-1132.64973647,0.0001425,2]
[422717610,1779298246000,-173.08176462,0.00010679,2]
[422717611,1779298246000,-193.87526755,0.0001334,2]
[422717612,1779298246000,-3439.12473245,0.0001334,2]
[422717614,1779298246000,-8094.99423611,0.0001425,2]
[422717613,1779298246000,-54252.25830775,0.0001425,2]
[422717617,1779298321000,150.0,0.00014241,120]
[422717618,1779298340000,205.0,0.00028,120]
[422717621,1779298586000,150.81,6.497e-05,2]
[422717622,1779298616000,152.0,0.0001224,30]
[422717623,1779298617000,152.0,0.00012263,30]
[422717624,1779298618000,152.0,0.00028729,120]
[422717625,1779298643000,655.64359153,0.00028568,120]
[422717626,1779298679000,187.32674043,0.0002857,120]
[422717627,1779298681000,280.99011065,0.0002857,120]
[422717628,1779298721000,200.78,9.633e-05,7]
[422717630,1779298913000,152.0,0.00012263,30]
[422717631,1779298980000,174.8694834,0.0001,30]
[422717632,1779299223000,152.0,0.00011107,30]
[422717633,1779299340000,1000.0,0.00028764,120]
[422717638,1779299431000,-150.81,7.537e-05,2]
[422717660,1779299432000,-208.63953863,0.00010809,2]
[422717661,1779299432000,-10793.0,0.00010809,2]
[422717664,1779299432000,-150.81,0.00011698,2]
[422717663,1779299432000,-656.54880927,0.00011319,2]
[422717662,1779299432000,-539.06895984,0.00010859,2]
[422717666,1779299432000,-844.92,0.00011755,2]
[422717668,1779299432000,-457.78124533,0.000118,2]
[422717667,1779299432000,-1680.0,0.00011763,2]
[422717670,1779299432000,-152.0,0.00011807,7]
[422717674,1779299432000,-152.0,0.00011807,7]
[422717679,1779299432000,-152.0,0.00011807,7]
[422717683,1779299432000,-152.0,0.00011811,7]
[422717687,1779299432000,-150.0,0.00011811,2]
[422717690,1779299432000,-500.0,0.00011824,2]
[422717658,1779299432000,-215.20247212,0.00010809,2]
[422717656,1779299432000,-4660.11189179,0.00010695,2]
[422717657,1779299432000,-178.95200143,0.00010766,2]
[422717655,1779299432000,-300.0,0.00010694,2]
[422717653,1779299432000,-150.81,0.00010658,2]
[422717652,1779299432000,-250.43927377,9.959e-05,2]
[422717651,1779299432000,-150.81,9.617e-05,2]
[422717654,1779299432000,-1200.0,0.00010694,2]
[422717646,1779299432000,-539.06895985,8.577e-05,2]
[422717647,1779299432000,-150.81,8.577e-05,2]
[422717650,1779299432000,-294.84829246,8.627e-05,2]
[422717645,1779299432000,-200.0,8.501e-05,2]
[422717644,1779299432000,-500.0,8.291e-05,2]
[422717643,1779299432000,-500.0,8.291e-05,2]
[422717640,1779299432000,-745.06150754,8.29e-05,2]
[422717639,1779299432000,-610.87861929,8.239e-05,2]
[422717659,1779299432000,-160.0,0.00010809,2]
[422717702,1779299432000,-200.0,0.000119,2]
[422717665,1779299432000,-180.0,0.00011755,2]
[422717696,1779299432000,-2000.0,0.00011826,2]
[422717711,1779299432000,-171.1,0.00011953,2]
[422717759,1779299432000,-150.0,0.00013315,2]
[422717758,1779299432000,-150.0,0.00013315,2]
[422717757,1779299432000,-150.0,0.00013315,2]
[422717755,1779299432000,-150.0,0.00013315,2]
[422717756,1779299432000,-150.0,0.00013315,2]
[422717751,1779299432000,-539.06895984,0.0001324,2]
[422717752,1779299432000,-500.0,0.00013286,2]
[422717754,1779299432000,-251.37092638,0.00013315,2]
[422717753,1779299432000,-2000.0,0.00013304,2]
[422717749,1779299432000,-656.54880927,0.00013017,2]
[422717748,1779299432000,-500.0,0.00013012,2]
[422717750,1779299432000,-277.41,0.00013112,2]
[422717747,1779299432000,-2185.0,0.0001294,2]
[422717744,1779299432000,-150.0,0.00012898,7]
[422717760,1779299432000,-150.0,0.00013315,2]
[422717742,1779299432000,-255.0,0.00012886,2]
[422717746,1779299432000,-844.92,0.00012931,2]
[422717730,1779299432000,-844.92,0.00012637,2]
[422717717,1779299432000,-152.0,0.00012169,7]
[422717726,1779299432000,-844.92,0.00012343,2]
[422717732,1779299432000,-170.43895318,0.00012637,2]
[422717734,1779299432000,-500.0,0.00012738,2]
[422717728,1779299432000,-214.71,0.000126,2]
[422717719,1779299432000,-152.0,0.00012173,7]
[422717740,1779299432000,-2602.15,0.00012809,2]
[422717723,1779299432000,-292.7645716,0.00012217,2]
[422717725,1779299432000,-154.11,0.00012276,2]
[422717714,1779299432000,-844.92,0.00012049,2]
[422717721,1779299432000,-850.61605211,0.00012217,2]
[422717736,1779299432000,-150.81,0.00012738,2]
[422717738,1779299432000,-915.56249065,0.000128,2]
[422717793,1779299433000,-150.0,0.00013536,2]
[422717805,1779299433000,-635.68695821,0.00013536,2]
[422717795,1779299433000,-150.0,0.00013536,2]
[422717794,1779299433000,-500.0,0.00013536,2]
[422717796,1779299433000,-500.0,0.00013536,2]
[422717803,1779299433000,-500.0,0.00013536,2]
[422717797,1779299433000,-154.42738782,0.00013536,2]
[422717799,1779299433000,-500.0,0.00013536,2]
[422717800,1779299433000,-537.31096175,0.00013536,2]
[422717801,1779299433000,-500.0,0.00013536,2]
[422717802,1779299433000,-500.0,0.00013536,2]
[422717804,1779299433000,-500.0,0.00013536,2]
[422717798,1779299433000,-500.0,0.00013536,2]
[422717814,1779299433000,-150.0,0.00013611,2]
[422717808,1779299433000,-248.070095,0.00013556,2]
[422717806,1779299433000,-261.12555,0.00013556,2]
[422717830,1779299433000,-500.0,0.00013698,2]
[422717813,1779299433000,-150.0,0.00013569,2]
[422717809,1779299433000,-189.556929,0.00013556,2]
[422717810,1779299433000,-500.0,0.0001356,2]
[422717817,1779299433000,-150.0,0.00013653,2]
[422717811,1779299433000,-150.0,0.00013562,2]
[422717816,1779299433000,-154.47727069,0.00013636,2]
[422717815,1779299433000,-150.0,0.00013611,2]
[422717812,1779299433000,-150.0,0.00013562,2]
[422717819,1779299433000,-500.0,0.00013698,2]
[422717791,1779299433000,-500.0,0.00013536,2]
[422717807,1779299433000,-319.777855,0.00013556,2]
[422717792,1779299433000,-524.02563693,0.00013536,2]
[422717772,1779299433000,-3633.0,0.0001334,2]
[422717788,1779299433000,-500.0,0.00013536,2]
[422717761,1779299433000,-150.0,0.00013315,2]
[422717770,1779299433000,-1224.0,0.0001334,2]
[422717766,1779299433000,-3545.0,0.0001334,2]
[422717769,1779299433000,-1271.0,0.0001334,2]
[422717763,1779299433000,-150.0,0.00013315,2]
[422717768,1779299433000,-625.0,0.0001334,2]
[422717765,1779299433000,-1000.0,0.00013339,2]
[422717762,1779299433000,-150.0,0.00013315,2]
[422717764,1779299433000,-150.0,0.00013315,2]
[422717767,1779299433000,-1354.0,0.0001334,2]
[422717771,1779299433000,-931.0,0.0001334,2]
[422717773,1779299433000,-500.0,0.00013356,2]
[422717784,1779299433000,-485.47662152,0.000135,2]
[422717783,1779299433000,-1872.07836152,0.000135,2]
[422717774,1779299433000,-500.0,0.00013356,2]
[422717776,1779299433000,-150.0,0.000134,2]
[422717779,1779299433000,-150.0,0.00013484,2]
[422717775,1779299433000,-150.0,0.00013357,2]
[422717777,1779299433000,-150.0,0.00013442,2]
[422717778,1779299433000,-171.1,0.00013447,2]
[422717780,1779299433000,-150.0,0.00013488,2]
[422717781,1779299433000,-166.79,0.00013497,2]
[422717782,1779299433000,-910.78222874,0.000135,2]
[422717785,1779299433000,-154.11,0.00013503,2]
[422717787,1779299433000,-150.0,0.00013526,2]
[422717786,1779299433000,-150.0,0.00013526,2]
[422717789,1779299433000,-500.0,0.00013536,2]
[422717790,1779299433000,-500.0,0.00013536,2]
[422717829,1779299433000,-500.0,0.00013698,2]
[422717838,1779299433000,-299.99,0.00013699,2]
[422717818,1779299433000,-150.0,0.00013695,2]
[422717856,1779299433000,-280.99011065,0.00013817,2]
[422717858,1779299433000,-1431.70128984,0.00013823,2]
[422717859,1779299433000,-442.9519,0.00013825,2]
[422717860,1779299433000,-500.0,0.00013832,2]
[422717861,1779299433000,-248.16577941,0.00013832,2]
[422717864,1779299433000,-500.0,0.00013832,2]
[422717866,1779299433000,-485.63075491,0.00013832,2]
[422717868,1779299433000,-500.0,0.00013832,2]
[422717867,1779299433000,-230.36207378,0.00013832,2]
[422717862,1779299433000,-500.0,0.00013832,2]
[422717857,1779299433000,-150.0,0.00013822,2]
[422717865,1779299433000,-500.0,0.00013832,2]
[422717870,1779299433000,-428.5757272,0.00013832,2]
[422717881,1779299433000,-500.0,0.00013832,2]
[422717880,1779299433000,-500.0,0.00013832,2]
[422717869,1779299433000,-500.0,0.00013832,2]
[422717872,1779299433000,-201.60034852,0.00013832,2]
[422717877,1779299433000,-500.0,0.00013832,2]
[422717873,1779299433000,-500.0,0.00013832,2]
[422717876,1779299433000,-500.0,0.00013832,2]
[422717879,1779299433000,-500.0,0.00013832,2]
[422717874,1779299433000,-500.0,0.00013832,2]
[422717871,1779299433000,-234.3759862,0.00013832,2]
[422717878,1779299433000,-500.0,0.00013832,2]
[422717875,1779299433000,-500.0,0.00013832,2]
[422717882,1779299433000,-500.0,0.00013832,2]
[422717822,1779299433000,-500.0,0.00013698,2]
[422717852,1779299433000,-1373.34373598,0.000138,2]
[422717853,1779299433000,-150.0,0.00013808,2]
[422717863,1779299433000,-500.0,0.00013832,2]
[422717848,1779299433000,-150.0,0.00013738,2]
[422717824,1779299433000,-500.0,0.00013698,2]
[422717820,1779299433000,-500.0,0.00013698,2]
[422717821,1779299433000,-500.0,0.00013698,2]
[422717823,1779299433000,-500.0,0.00013698,2]
[422717827,1779299433000,-500.0,0.00013698,2]
[422717826,1779299433000,-500.0,0.00013698,2]
[422717825,1779299433000,-500.0,0.00013698,2]
[422717847,1779299433000,-150.0,0.00013738,2]
[422717832,1779299433000,-500.0,0.00013698,2]
[422717831,1779299433000,-500.0,0.00013698,2]
[422717835,1779299433000,-166.66,0.00013699,2]
[422717840,1779299433000,-5000.0,0.00013733,2]
[422717836,1779299433000,-200.0,0.00013699,2]
[422717834,1779299433000,-500.0,0.00013698,2]
[422717828,1779299433000,-500.0,0.00013698,2]
[422717842,1779299433000,-16055.87829097,0.00013734,2]
[422717833,1779299433000,-500.0,0.00013698,2]
[422717845,1779299433000,-173.08176461,0.00013736,2]
[422717851,1779299433000,-150.0,0.0001378,2]
[422717849,1779299433000,-152.0,0.00013757,2]
[422717850,1779299433000,-152.0,0.00013761,2]
[422717846,1779299433000,-150.0,0.00013737,2]
[422717843,1779299433000,-3018.46372833,0.00013736,2]
[422717855,1779299433000,-234.15842555,0.00013817,2]
[422717854,1779299433000,-150.0,0.00013808,2]
[422717844,1779299433000,-297.0830555,0.00013736,2]
[422717841,1779299433000,-2500.0,0.00013733,2]
[422717837,1779299433000,-1340.07,0.00013699,2]
[422717839,1779299433000,-432.3998,0.00013733,2]
[422717886,1779299434000,-500.0,0.00013832,2]
[422717896,1779299434000,-500.0,0.00013832,2]
[422717893,1779299434000,-500.0,0.00013832,2]
[422717890,1779299434000,-500.0,0.00013832,2]
[422717884,1779299434000,-500.0,0.00013832,2]
[422717906,1779299434000,-500.0,0.00013832,2]
[422717885,1779299434000,-500.0,0.00013832,2]
[422717889,1779299434000,-500.0,0.00013832,2]
[422717891,1779299434000,-573.0866294,0.00013832,2]
[422717888,1779299434000,-500.0,0.00013832,2]
[422717883,1779299434000,-500.0,0.00013832,2]
[422717887,1779299434000,-500.0,0.00013832,2]
[422717892,1779299434000,-150.0,0.00013832,2]
[422717907,1779299434000,-500.0,0.00013832,2]
[422717894,1779299434000,-500.0,0.00013832,2]
[422717908,1779299434000,-500.0,0.00013832,2]
[422717905,1779299434000,-500.0,0.00013832,2]
[422717895,1779299434000,-500.0,0.00013832,2]
[422717914,1779299434000,-716512.28766334,0.00013833,2]
[422717912,1779299434000,-500.0,0.00013832,2]
[422717913,1779299434000,-500.0,0.00013832,2]
[422717911,1779299434000,-500.0,0.00013832,2]
[422717909,1779299434000,-500.0,0.00013832,2]
[422717903,1779299434000,-500.0,0.00013832,2]
[422717910,1779299434000,-500.0,0.00013832,2]
[422717904,1779299434000,-500.0,0.00013832,2]
[422717915,1779299434000,-97564.17915198,0.00013833,2]
[422717899,1779299434000,-500.0,0.00013832,2]
[422717897,1779299434000,-500.0,0.00013832,2]
[422717900,1779299434000,-500.0,0.00013832,2]
[422717901,1779299434000,-534.75180877,0.00013832,2]
[422717898,1779299434000,-500.0,0.00013832,2]
[422717902,1779299434000,-500.0,0.00013832,2]
[422717919,1779299438000,-2136.06160953,0.00013699,2]
[422717921,1779299438000,-4237.10039473,0.00013833,2]
[422717920,1779299438000,-363.93839047,0.00013699,2]
[422717926,1779299440000,-500.0,0.00013833,2]
[422717927,1779299441000,-1240.62226071,0.00013833,2]
[422717936,1779299447000,-143574.58483886,0.00013833,2]
[422717934,1779299447000,-418.0,0.0001334,2]
[422717935,1779299447000,-11652.15,0.00013833,2]
[422717939,1779299565000,223.22659515,0.000119,2]
[422717942,1779299579000,202.38,6.589e-05,2]
[422717943,1779299627000,229.99103742,0.000119,2]
[422717947,1779299748000,152.0,0.00010167,7]
[422717948,1779299749000,152.0,0.00010167,7]
[422717949,1779299851000,163.08130951,0.00026756,120]
[422717950,1779299894000,280.99011066,0.00028552,120]
[422717951,1779299897000,210.74258299,0.00028552,120]
[422717953,1779300053000,152.0,0.00011856,7]
[422717956,1779300487000,223.22659515,0.000119,2]
[422717957,1779300540000,1000.0,0.00028763,120]
[422717958,1779300546000,202.38,6.387e-05,2]
[422717989,1779300631000,-3545.0,0.0001334,2]
[422717984,1779300631000,-2076.8117,0.0001324,2]
[422717988,1779300631000,-625.0,0.0001334,2]
[422717983,1779300631000,-195.04,0.000132,2]